Workbook

Sheet Instructions
C2: HSM Part C Training Tool Instructions
C4: Overview
C5: This series of spreadsheets has been developed to assist in the application of the predictive methods contained in the Highway Safety Manual (HSM), 1st Edition for analyzing: urban and suburban arterials, rural multilane roads, and rural two lane roads.
C7: Data Color Guidelines
D9: Required user input data
D11: Required user input data restricted to dropdown values
D13: Automatically updated information based on previous user input data
D15: User work space (notes, comments, etc.)
C17: Upon Opening the File
C18: 1. Ensure that macros are enabled in Excel. (Refer to Microsoft Help for more information about enabling macros.)
C19: 2. Read the terms of use and follow the directions on the prompts.
C20: 3. If analyzing a new project, follow the prompts to save as a new file.
C21: 4. Read all instructions before proceeding.
C23: General Steps for Project Safety Performance Analysis
C24: 1. Navigate to the “Project Information” tab.
C25: 2. Using the color guidelines above, populate the required information under General Information.
C26: 3. Push the “Update Element Table” button to set up the element table. *Note: Elements cannot be added to the analysis once this button has been pushed.
C27: 4. Fill in the Route, Location Description, and Jurisdiction for each element. For intersections, also select whether or not the intersection is signalized. And where applicable, select divided or undivided for each segment.
C28: 5. Once all of the information has been entered, push the “Proceed to 1st Element” button.
C29: 6. On the current tab (either “Segment 1” or “Intersection 1”), enter all of the required information (refer to color guidelines).
C30: 7. Ensure that all necessary information has been entered, then push the “Next Element” button.
C31: 8. Repeat steps 6 and 7 for all project elements.
C32: 9. On the tab for the final project element, push the "Generate Report" button to run the analysis and redirect to the “Report” page, giving a summary of the analysis results.
C33: 10. At this time, any of the input information on the element tabs can be altered if desired. The results will update automatically.
C35: General Steps for a Multi-Year Project Safety Performance Analysis
C36: 1. Complete all steps for the Project Safety Performance Analysis first.
C37: 2. Navigate to the “Multi-Year Analysis Inputs” tab.
C38: 3. Enter the required information (Input Data*). Refer to color guidelines as necessary. *Note: the Traffic Growth Rate is a linear growth rate per year (i.e. the volume increases by the same number of vehicles each year) and should be entered as a percent, not as a decimal.
C39: 4. Once all of the information is complete, push the “Run Multi-Year Analysis” button to perform the analysis.
C40: 5. The “Multi-Year Summary Report” tab provides a summary table of the multi-year analysis, with the expected average crash frequency, the potential for safety improvement, and a discussion of the results for the analysis period.

Sheet Project Information
A1: PROJECT SAFETY PERFORMANCE ANALYSIS INPUT SHEET | L1: User Work Space
A2: General Information
A3: Project Name | B3: Practical Case Study | D3: Contact Email | F3: email
A4: Project Description | B4: Three Signalized Intersections | D4: Contact Phone | F4: 1234567891
A5: Reference Number | B5: STARS Report A-1 | D5: Date Performed | F5: 2011-05-12
A6: Analyst | B6: John Smith | D6: Analysis Year | F6: 2011
A7: Agency/Company | B7: ABC Company | D7: Multiple Year Analysis?
A11: # of Segments in Analysis | B11: 1 | D11: Predicted/expected crashes
A12: # of Intersections in Analysis | B12: 1
E13: ANALYSIS YEAR
A14: INDIVIDUAL PROJECT ELEMENTS | B14: LOCATION INFORMATION | D14: JURISDICTION | F14: INTERSECTIONS ONLY | G14: DETERMINING FOR PROJECT ELEMENT: | I14: SEGMENTS ONLY
B15: Route | C15: Location Description | F15: Signalized or Unsignalized? | G15: Typical site safety performance (predicted average crash frequency) | H15: Anticipated long-term safety performance (expected average crash frequency) | I15: Divided or Undivided?
A17: SEGMENTS
A19: INTERSECTIONS
AL29: Base Year

Sheet Report
A1: PROJECT SAFETY PERFORMANCE SUMMARY REPORT | N1: User Work Space
A2: General Information
A3: Project Name | B3: ='Project Information'!B3 -> Practical Case Study
A4: Project Description | B4: ='Project Information'!B4 -> Three Signalized Intersections
A5: Reference Number | B5: ='Project Information'!B5 -> STARS Report A-1
A6: Analyst | B6: ='Project Information'!B6 -> John Smith
A7: Agency/Company | B7: ='Project Information'!B7 -> ABC Company
A8: Contact Email | B8: ='Project Information'!F3 -> email
A9: Contact Phone | B9: ='Project Information'!F4 -> 1234567891
A10: Date Completed | B10: ='Project Information'!F5 -> 2011-05-12
A11: PROJECT SUMMARY
B12: Total Crashes/yr | E12: Fatal and Injury Crashes/yr | H12: Property Damage Only Crashes/yr
A13: Project Element | B13: (KABCO) | E13: (KABC) | H13: (PDO)
B14: Predicted average crash frequency | C14: Expected average crash frequency | D14: Potential for Improvement | E14: Predicted average crash frequency | F14: Expected average crash frequency | G14: Potential for Improvement | H14: Predicted average crash frequency | I14: Expected average crash frequency | J14: Potential for Improvement
B15: Npredicted (KABCO) | C15: Nexpected (KABCO) | E15: Npredicted (KABC) | F15: Nexpected (KABC) | H15: Npredicted (O) | I15: Nexpected (O)
A16: INDIVIDUAL SEGMENTS
A18: INDIVIDUAL INTERSECTIONS
A20: COMBINED (sum of column)
A22: PROJECT SUMMARY -- Site-Specific EB Method Summary Results for Rural Multilane Roads
A24: Crash severity level | E24: N predicted(PROJECT) | G24: N expected (PROJECT) | I24: N potential for improvement (PROJECT)
E25: Predicted average crash frequency - Average safety performance of projects consisting of similar elements (anticipated average crashes/yr) | G25: Expected average crash frequency - Actual long-term safety performance of the project (anticipated average crashes/yr) | I25: Potential for Safety Improvement (anticipated average crashes/yr)
A26: Fatal and injury (KABC) | E26: =+E20 -> 0 | G26: =+F20 -> 0 | I26: =+IF(G26>=E26,+G26-E26,"N/A") -> 0
A27: Property damage only (PDO) | E27: =+H20 -> 0 | G27: =+I20 -> 0 | I27: =+IF(G27>=E27,+G27-E27,"N/A") -> 0
A28: Total (KABCO) | E28: =+B20 -> 0 | G28: =+C20 -> 0 | I28: =+IF(G28>=E28,+G28-E28,"N/A") -> 0
A31: Discussion of Results
A32: Given the potential effects of project characteristics on safety performance, results indicate that:
A33: =IFERROR(+CONCATENATE("1. It is anticipated that the project will, on average, experience ",+ROUND(G28,1)," crashes per year (",ROUND(G26,1)," fatal and injury crashes per year; and ",+ROUND(G27,1)," property damage only crashes per year)."),"") -> 1. It is anticipated that the project will, on average, experience 0 crashes per year (0 fatal and injury crashes per year; and 0 property damage only crashes per year).
A34: =IFERROR(+CONCATENATE("2. A similar project is anticipated, on average, to experience ",+(ROUND(E28,1))," crashes per year (",+ROUND(E26,1)," fatal and injury crashes per year; and ",+ROUND(E27,1)," property damage only crashes per year)."),"") -> 2. A similar project is anticipated, on average, to experience 0 crashes per year (0 fatal and injury crashes per year; and 0 property damage only crashes per year).
A35: =IFERROR(+IF(I28="N/A","",+CONCATENATE("3. It is anticipated the project has, on average, a potential for safety improvement of ",ROUND(I28,1)," crashes per year (",+ROUND(I26,1)," fatal and injury crashes per year; and ",+ROUND(I27,1)," property damage only crashes per year).")),"") -> 3. It is anticipated the project has, on average, a potential for safety improvement of 0 crashes per year (0 fatal and injury crashes per year; and 0 property damage only crashes per year).

Sheet Rural Multilane Site Total (hidden)
B3: Worksheet 3A -- Predicted and Observed Crashes by Severity and Site Type Using the Site-Specific EB Method | O3: User Work Space
B5: (1) | D5: (2) | E5: (3) | F5: (4) | G5: (5) | H5: (5) | I5: (5) | J5: (6) | K5: (7) | L5: (8)
B6: Site type | D6: Predicted average crash frequency (crashes/year) | G6: Observed crashes (crashes/year) | J6: Overdispersion Parameter, k | K6: Weighted adjustment, w | L6: Expected average crash frequency, Nexpected
D9: N predicted (TOTAL) | E9: N predicted (FI) | F9: N predicted (PDO) | G9: Nobserved (TOTAL) | H9: Nobserved (FI) | I9: Nobserved (PDO) | K9: Equation A-5 from Part C Appendix | L9: Equation A-4 from Part C Appendix
B12: ROADWAY SEGMENTS
B14: INTERSECTIONS
B16: COMBINED (sum of column)
C20: Worksheet 3B -- Site-Specific EB Method Summary Results
C22: (1) | F22: (2) | I22: (3)
C23: Crash severity level | F23: N predicted | I23: N expected
C24: Total | F24: (2)COMB from Worksheet 3A | I24: (8)COMB from Worksheet 3A
F25: =+D16 -> 0 | I25: =+L16 -> 0
C26: Fatal and injury (FI) | F26: (3)COMB from Worksheet 3A | I26: (3)TOTAL * (2)FI / (2) TOTAL
F27: =+E16 -> 0 | I27: =+L16*E16/D16 -> 
C28: Property damage only (PDO) | F28: (4)COMB from Worksheet 3A | I28: (3)TOTAL * (2)PDO / (2) TOTAL
F29: =+F16 -> 0 | I29: =+L16*F16/D16 -> 

Sheet Multi-Year Summary (hidden)
A1: MULTIPLE-YEAR ANALYSIS SUMMARY FOR RURAL MULTILANE ROADS
A4: General Information
A5: Base Year
A6: Analysis Period (Years)
A7: Linear Traffic Growth Rate (annual %)
A10: =CONCATENATE(C6,"-Year Analysis Summary Report") -> -Year Analysis Summary Report
A11: Analysis Year | B11: Predicted Average Crash Frequency (Npredicted) | E11: Expected Average Crash Frequency (Nexpected) | H11: Potential for Safety Improvement (crashes/yr)
B12: KABC | C12: PDO | D12: Total (KABCO) | E12: KABC | F12: PDO | G12: Total (KABCO) | H12: KABC | I12: PDO | J12: Total (KABCO)

Sheet Multi-Year Analysis Report (hidden)
A1: MULTIPLE YEAR PROJECT SAFETY PERFORMANCE SUMMARY REPORT FOR RURAL MULTILANE ROADS | M1: User Work Space
A2: General Information
A3: Project Name | B3: Practical Case Study
A4: Project Description | B4: Three Signalized Intersections
A5: Reference Number | B5: STARS Report A-1
A6: Analyst | B6: John Smith
A7: Agency/Company | B7: ABC Company
A8: Contact Email | B8: email
A9: Contact Phone | B9: 1234567891
A10: Date Completed | B10: 2011-05-12
A11: Base Year
A12: Analysis Period (Years)
A13: Linear Traffic Growth Rate (annual %)
A14: PROJECT SUMMARY
A16: =CONCATENATE(B12,"-Year Analysis Summary Report") -> -Year Analysis Summary Report
A17: Analysis Year | B17: Predicted Average Crash Frequency (Npredicted) | E17: Expected Average Crash Frequency (Nexpected) | H17: Potential for Safety Improvement (crashes/yr)
B18: KABC | C18: PDO | D18: Total (KABCO) | E18: KABC | F18: PDO | G18: Total (KABCO) | H18: KABC | I18: PDO | J18: Total (KABCO)
A19: =B11 -> 0
A20: Total
A23: PROJECT SUMMARY -- Site-Specific EB Method Summary Results for Rural Multilane Roads
E24: N predicted(PROJECT) | G24: N expected (PROJECT) | I24: N potential for improvement (PROJECT)
A25: Crash severity level | E25: =+CONCATENATE("Predicted average crash frequency - Average safety performance of projects consisting of similar elements (anticipated total number of crashes over ",B12," years)") -> Predicted average crash frequency - Average safety performance of projects consisting of similar elements (anticipated total number of crashes over years) | G25: =+CONCATENATE("Expected average crash frequency - Average long-term safety performance of the project (anticipated total number of crashes over ",B12," years)") -> Expected average crash frequency - Average long-term safety performance of the project (anticipated total number of crashes over years) | I25: =+CONCATENATE("Potential safety performance - Average project performance compared to threshold set by typical other similar projects (anticipated total number of crashes over ",B12," years)") -> Potential safety performance - Average project performance compared to threshold set by typical other similar projects (anticipated total number of crashes over years)
A26: Fatal and injury crashes (KABC) | E26: =+B20 -> 0 | G26: =+E20 -> 0 | I26: =+IF(G26>=E26,+G26-E26,"N/A") -> 0
A27: Property damage only crashes (PDO) | E27: =+C20 -> 0 | G27: =+F20 -> 0 | I27: =+IF(G27>=E27,+G27-E27,"N/A") -> 0
A28: Total crashes (KABCO) | E28: =+D20 -> 0 | G28: =+G20 -> 0 | I28: =+IF(G28>=E28,+G28-E28,"N/A") -> 0
A31: Discussion of Results
A32: =+CONCATENATE("Given the potential effects of project characteristics on safety performance and assuming a ",100*B13, " % growth in AADT over a ",B12, " year analysis period with ",B11," as the base year, results indicate that:") -> Given the potential effects of project characteristics on safety performance and assuming a 0 % growth in AADT over a year analysis period with as the base year, results indicate that:
A33: =IFERROR(+CONCATENATE("1. The project is anticipated, on average, to experience ", +ROUND(G28,1)," crashes over a ",B12, " year analysis period (",+(ROUND(G26,1))," fatal and injury crashes; and ",+ROUND(G27,1)," property damage only crashes)."),"") -> 1. The project is anticipated, on average, to experience 0 crashes over a year analysis period (0 fatal and injury crashes; and 0 property damage only crashes).
A34: =IFERROR(+CONCATENATE("2. A similar project is anticipated, on average, to experience ", +(ROUND(E28,1))," crashes over a ",B12, " year analysis period (", +ROUND(E26,1)," fatal and injury crashes over ",B12," years; and ",+ROUND(E27,1)," property damage only crashes over ",B12," years)."),"") -> 2. A similar project is anticipated, on average, to experience 0 crashes over a year analysis period (0 fatal and injury crashes over years; and 0 property damage only crashes over years).
A35: =IFERROR(+IF(I28="N/A","",+CONCATENATE("3. It is anticipated the project will have an average potential for safety improvement of ",ROUND(I28,1)," crashes over a ",B12, " year analysis period (",+ROUND(I26,1)," fatal and injury crashes over ",B12," years; and ",+ROUND(I27,1)," property damage only crashes over ",B12," years).")),"") -> 3. It is anticipated the project will have an average potential for safety improvement of 0 crashes over a year analysis period (0 fatal and injury crashes over years; and 0 property damage only crashes over years).

Sheet Divided Segment Template (hidden)
Q1: User Work Space
A2: Worksheet 1A (a) -- General Information and Input Data for Rural Multilane Roadway Segments
A3: General Information | H3: Location Information | Y3: Tables Affiliated with CMFs for Specific Segment AADT values:
A4: Analyst | C4: ='Project Information'!B6 -> John Smith | H4: Roadway | K4: =VLOOKUP($C$7,'Project Information'!$A$17:$I$99,2,FALSE) -> 
A5: Agency or Company | C5: ='Project Information'!B7 -> ABC Company | H5: Roadway Section | K5: =VLOOKUP($C$7,'Project Information'!$A$17:$I$99,3,FALSE) -> 
A6: Date Performed | C6: ='Project Information'!F5 -> 2011-05-12 | H6: Jurisdiction | K6: =VLOOKUP($C$7,'Project Information'!$A$17:$I$99,4,FALSE) ->  | Y6: Table 11-16: CMF for Lane Width on Divided Roadway Segments (CMFRA)
A7: Segment for Analysis | H7: Analysis Year | K7: ='Project Information'!F6 -> 2011
A8: Input Data | H8: Site Conditions | L8: Base Conditions | Y8: Lane Width (ft) | AA8: AADT (veh/day)
A9: Roadway type (divided / undivided) | H9: Divided | L9: Undivided | AA9: < 400 | AB9: 400 to 2000 | AC9: > 2000
A10: Length of segment, L (mi) | L10: -- | Y10: 9 | AA10: 1.03 | AB10: =1.03+0.000138*('Divided Segment Template'!$H$11-400) -> 0.9748 | AC10: 1.25
A11: AADT (veh/day) | E11: AADTMAX = | F11: 89300 | G11: (veh/day) | L11: -- | O11: =IF(H11>F11,"AADT out of range","AADT OK") -> AADT OK | Y11: 9.5 | AA11: =+(AA10+AA12)/2 -> 1.02 | AB11: =+(AB10+AB12)/2 -> 0.9749 | AC11: =+(AC10+AC12)/2 -> 1.2
A12: Lane width (ft) | L12: 12 | Y12: 10 | AA12: 1.01 | AB12: =1.01+0.0000875*('Divided Segment Template'!$H$11-400) -> 0.975 | AC12: 1.15
A13: Shoulder width (ft) - right shoulder width for divided [if differ for directions of travel, use average width] | L13: 8 | Y13: 10.5 | AA13: =+(AA12+AA14)/2 -> 1.01 | AB13: =+(AB12+AB14)/2 -> 0.99 | AC13: =+(AC12+AC14)/2 -> 1.09
A14: Shoulder type - right shoulder type for divided | L14: Paved | Y14: 11 | AA14: 1.01 | AB14: =1.01+0.0000125*('Divided Segment Template'!$H$11-400) -> 1.005 | AC14: 1.03
A15: Median width (ft) - for divided only | L15: 30 | Y15: 11.5 | AA15: =+(AA14+AA16)/2 -> 1.005 | AB15: =+(AB14+AB16)/2 -> 1.0025 | AC15: =+(AC14+AC16)/2 -> 1.015
A16: Side Slopes - for undivided only | H16: Not Applicable | L16: 1:7 or flatter | Y16: 12 | AA16: 1 | AB16: 1 | AC16: 1
A17: Lighting (present/not present) | H17: Not Present | L17: Not Present | Y17: Note: The collision types related to lane width to which this CMF applies include run-off-the-road, head-on crashes, and sideswipes.
A18: Auto speed enforcement (present/not present) | H18: Not Present | L18: Not Present
A19: Calibration Factor, Cr | H19: 1 | L19: 1
A20: Average Annual Crash History (3 or 5-yr average)
A21: Segment crashes | G21: KABC | H21: Fatal and Injury Only | J21: 0 | O21: If inputs are complete, click for next element
G22: PDO | H22: Property Damage Only | J22: 0
A23: NOTES: * AADT: It is important to remember that the AADT(major) = AADT(major approach1) + AADT(minor approach2) (refer to p.11-6 in Part C of the HSM)
A27: Worksheet 1B (a) -- Crash Modification Factors for Rural Multilane Divided Roadway Segments
A28: (1) | C28: (2) | F28: (3) | H28: (4) | J28: (5) | M28: (6)
A29: CMF for Lane Width | C29: CMF for Right Shoulder Width | F29: CMF for Median Width | H29: CMF for Lighting | J29: CMF for Automated Speed Enforcement | M29: Combined CMF | AK29: Base AADT
A31: CMF 1rd | C31: CMF 2rd | F31: CMF 3rd | H31: CMF 4rd | J31: CMF 5rd | M31: CMF comb
A32: from Equation 11-16 | C32: from Table 11-17 | F32: from Table 11-18 | H32: from Equation 11-17 | J32: from Section 11.7.2 | M32: (1)*(2)*(3)*(4)*(5)
A33: =((IF($H$11>2000,(VLOOKUP($H$12,'Divided Segment Template'!$Y$10:$AC$16,5,FALSE)),IF($H$11<400,(VLOOKUP($H$12,'Divided Segment Template'!$Y$10:$AC$16,3,FALSE)),(VLOOKUP($H$12,'Divided Segment Template'!$Y$10:$AC$16,4)))))-1)*(IF('Segment Tables'!D24="No",'Segment Tables'!E32,'Segment Tables'!I32))+1 ->  | C33: =IF(H14="Paved",VLOOKUP(H13,'Segment Tables'!AC10:AG20,3,FALSE),1) -> 1 | F33: =VLOOKUP(H15,'Segment Tables'!AC29:AF38,3,FALSE) ->  | H33: =IF($H$17="Present",(1-(IF('Segment Tables'!$D$53="No",((1-(0.72*'Segment Tables'!$E$57)-(0.83*'Segment Tables'!$F$57))*'Segment Tables'!$G$57),((1-(0.72*'Segment Tables'!$I$57)-(0.83*'Segment Tables'!$J$57))*'Segment Tables'!$K$57)))),1) -> 1 | J33: =IF($H$18="Present",0.94,1) -> 1 | M33: =$A$33*$C$33*$F$33*$H$33*$J$33 -> 
A37: Worksheet 1C (a) -- Roadway Segment Crashes for Rural Multilane Divided Roadway Segments
A38: (1) | C38: (2) | F38: (3) | H38: (4) | J38: (5) | L38: (6) | M38: (7)
A39: Crash Severity Level | C39: SPF Coefficients | F39: N spf rd | H39: Overdispersion Parameter, k | J39: Combined CMFs | L39: Calibration Factor, Cr | M39: Predicted average crash frequency, N predicted rs(d)
C40: from Table 11-5 | J40: (6) from Worksheet 1B (a)
C41: a | D41: b | E41: c | F41: from Equation 11-9 | H41: from Equation 11-10 | M41: (3)*(5)*(6)
A42: Total | C42: -9.025 | D42: 1.049 | E42: 1.549 | F42: =EXP($C$42+$D$42*LN($H$11)+LN($H$10)) ->  | H42: =1/(EXP($E$42+LN($H$10))) ->  | J42: =+$M$33 ->  | L42: =+$H$19 -> 1 | M42: =+F42*J42*L42 -> 
A43: Fatal and Injury (FI) | C43: -8.837 | D43: 0.958 | E43: 1.687 | F43: =EXP($C$43+$D$43*LN($H$11)+LN($H$10)) ->  | H43: =1/(EXP($E$43+LN($H$10))) ->  | J43: =+$M$33 ->  | L43: =+$H$19 -> 1 | M43: =+F43*J43*L43 -> 
A44: Fatal and Injurya (FIa) | C44: -8.505 | D44: 0.874 | E44: 1.74 | F44: =EXP($C$44+$D$44*LN($H$11)+LN($H$10)) ->  | H44: =1/(EXP($E$44+LN($H$10))) ->  | J44: =+$M$33 ->  | L44: =+$H$19 -> 1 | M44: =+F44*J44*L44 -> 
A45: Property Damage Only (PDO) | C45: -- | D45: -- | E45: -- | F45: -- | H45: -- | J45: -- | L45: -- | M45: (7)TOTAL - (7)FI
M46: =+M42-M43 -> 
A47: NOTE: a Using the KABCO scale, these include only KAB crashes. Crashes with severity level C (possible injury) are not included.
A51: Worksheet 1D (a) -- Crashes by Severity Level and Collision Type for Rural Multilane Divided Roadway Segments
A52: (1) | C52: (2) | D52: (3) | F52: (4) | G52: (5) | I52: (6) | J52: (7) | L52: (8) | M52: (9)
A53: Collision Type | C53: Proportion of Collision Type(TOTAL) | D53: N predicted rs(d) (TOTAL) (crashes/year) | F53: Proportion of Collision Type(FI) | G53: N predicted rs(d) (FI) (crashes/year) | I53: Proportion of Collision Type (FIa) | J53: N predicted rs (FIa) (crashes/year) | L53: Proportion of Collision Type (PDO) | M53: N predicted rs(d) (PDO) (crashes/year)
C56: from Table 11-6 | D56: (7)TOTAL from Worksheet 1C (a) | F56: from Table 11-6 | G56: (7)FI from Worksheet 1C (a) | I56: from Table 11-6 | J56: (7) FIa from Worksheet 1C (a) | L56: from Table 11-6 | M56: (7)PDO from Worksheet 1C (a)
A58: Total | C58: =IF('Segment Tables'!$D$24="No",SUM('Segment Tables'!$E$26:$E$31),SUM('Segment Tables'!$I$26:$I$31)) -> 1 | D58: =+M42 ->  | F58: =IF('Segment Tables'!$D$24="No",SUM('Segment Tables'!$F$26:$F$31),SUM('Segment Tables'!$J$26:$J$31)) -> 1 | G58: =+M43 ->  | I58: =IF('Segment Tables'!$D$24="No",SUM('Segment Tables'!$G$26:$G$31),SUM('Segment Tables'!$K$26:$K$31)) -> 1 | J58: =+M44 ->  | L58: =IF('Segment Tables'!D$24="No",SUM('Segment Tables'!$H$26:$H$31),SUM('Segment Tables'!$L$26:$L$31)) -> 1 | M58: =+M46 -> 
D59: (2)*(3)TOTAL | G59: (4)x(5)FI | J59: (6)*(7) FI a | M59: (8)*(9) PDO
A60: Head-on collision | C60: =IF('Segment Tables'!$D$24="No",'Segment Tables'!E26,'Segment Tables'!I26) -> 0.006 | D60: =+C60*$D$58 ->  | F60: =IF('Segment Tables'!$D$24="No",'Segment Tables'!F26,'Segment Tables'!J26) -> 0.013 | G60: =+F60*$G$58 ->  | I60: =IF('Segment Tables'!$D$24="No",'Segment Tables'!G26,'Segment Tables'!K26) -> 0.018 | J60: =+$J$58*I60 ->  | L60: =IF('Segment Tables'!$D$24="No",'Segment Tables'!H26,'Segment Tables'!L26) -> 0.002 | M60: =+$M$58*L60 -> 
A61: Sideswipe collision | C61: =IF('Segment Tables'!$D$24="No",'Segment Tables'!E27,'Segment Tables'!I27) -> 0.043 | F61: =IF('Segment Tables'!$D$24="No",'Segment Tables'!F27,'Segment Tables'!J27) -> 0.027 | I61: =IF('Segment Tables'!$D$24="No",'Segment Tables'!G27,'Segment Tables'!K27) -> 0.022 | L61: =IF('Segment Tables'!$D$24="No",'Segment Tables'!H27,'Segment Tables'!L27) -> 0.053
A62: Rear-end collision | C62: =IF('Segment Tables'!$D$24="No",'Segment Tables'!E28,'Segment Tables'!I28) -> 0.116 | F62: =IF('Segment Tables'!$D$24="No",'Segment Tables'!F28,'Segment Tables'!J28) -> 0.163 | I62: =IF('Segment Tables'!$D$24="No",'Segment Tables'!G28,'Segment Tables'!K28) -> 0.114 | L62: =IF('Segment Tables'!$D$24="No",'Segment Tables'!H28,'Segment Tables'!L28) -> 0.088
A63: Angle collision | C63: =IF('Segment Tables'!$D$24="No",'Segment Tables'!E29,'Segment Tables'!I29) -> 0.043 | F63: =IF('Segment Tables'!$D$24="No",'Segment Tables'!F29,'Segment Tables'!J29) -> 0.048 | I63: =IF('Segment Tables'!$D$24="No",'Segment Tables'!G29,'Segment Tables'!K29) -> 0.045 | L63: =IF('Segment Tables'!$D$24="No",'Segment Tables'!H29,'Segment Tables'!L29) -> 0.041
A64: Single-vehicle collision | C64: =IF('Segment Tables'!$D$24="No",'Segment Tables'!E30,'Segment Tables'!I30) -> 0.768 | F64: =IF('Segment Tables'!$D$24="No",'Segment Tables'!F30,'Segment Tables'!J30) -> 0.727 | I64: =IF('Segment Tables'!$D$24="No",'Segment Tables'!G30,'Segment Tables'!K30) -> 0.778 | L64: =IF('Segment Tables'!$D$24="No",'Segment Tables'!H30,'Segment Tables'!L30) -> 0.792
A65: Other collision | C65: =IF('Segment Tables'!$D$24="No",'Segment Tables'!E31,'Segment Tables'!I31) -> 0.024 | F65: =IF('Segment Tables'!$D$24="No",'Segment Tables'!F31,'Segment Tables'!J31) -> 0.022 | I65: =IF('Segment Tables'!$D$24="No",'Segment Tables'!G31,'Segment Tables'!K31) -> 0.023 | L65: =IF('Segment Tables'!$D$24="No",'Segment Tables'!H31,'Segment Tables'!L31) -> 0.024
A66: NOTE: a Using the KABCO scale, these include only KAB crashes. Crashes with severity level C (possible injury) are not included.
A69: Worksheet 1E (a) -- Summary Results for Rural Multilane Roadway Segments
A70: (1) | D70: (2) | I70: (3) | L70: (4)
A71: Crash severity level | D71: Predicted average crash frequency (crashes/year) | I71: Roadway segment length (mi) | L71: Crash rate (crashes/mi/year)
D72: (7) from Worksheet 1C (a) or (b) | L72: (2)/(3)
A73: Total | D73: =+M42 ->  | I73: =+$H$10 -> 0 | L73: =+D73/I73 -> 
A74: Fatal and Injury (FI) | D74: =+M43 ->  | I74: =+$H$10 -> 0 | L74: =+D74/I74 -> 
A75: Fatal and Injurya (FIa) | D75: =+M44 ->  | I75: =+$H$10 -> 0 | L75: =+D75/I75 -> 
A76: Property Damage Only (PDO) | D76: =+M46 ->  | I76: =+$H$10 -> 0 | L76: =+D76/I76 -> 
A77: NOTE: a Using the KABCO scale, these include only KAB crashes. Crashes with severity level C (possible injury) are not included.
C81: PROJECT ELEMENT RESULTS SUMMARY1
C83: Summary for the project element | D83: Total Crashes/yr | G83: Fatal and Injury Crashes/yr | J83: Property Damage Only Crashes/yr
D84: (KABCO) | G84: (KABC) | J84: (PDO)
D85: Predicted average crash frequency | E85: Expected average crash frequency | F85: Potential for Improvement | G85: Predicted average crash frequency | H85: Expected average crash frequency | I85: Potential for Improvement | J85: Predicted average crash frequency | K85: Expected average crash frequency | L85: Potential for Improvement
D86: Npredicted (KABCO) | E86: Nexpected (KABCO) | G86: Npredicted (KABC) | H86: Nexpected (KABC) | J86: Npredicted (O) | K86: Nexpected (O)
D87: =ROUND(D73,1) ->  | E87: =IF('Project Information'!$F$11="Predicted & Expected",ROUND(SUMIF('Rural Multilane Site Total'!$B$12:$C$37,$C$7,'Rural Multilane Site Total'!$L$12:$L$37),1),0) -> 0 | F87: =IF('Project Information'!$F$11="Predicted & Expected",IF(E87>D87,ROUND(E87-D87,1),0),0) -> 0 | G87: =ROUND(D74,1) ->  | H87: =IF('Project Information'!$F$11="Predicted & Expected",+ROUND((+E87*G87/D87),1),0) -> 0 | I87: =IF('Project Information'!$F$11="Predicted & Expected",IF(H87>G87,ROUND(H87-G87,1),0),0) -> 0 | J87: =ROUND(D76,1) ->  | K87: =IF('Project Information'!$F$11="Predicted & Expected",+ROUND((+E87*J87/D87),1),0) -> 0 | L87: =IF('Project Information'!$F$11="Predicted & Expected",IF(K87>J87,ROUND(K87-J87,1),0),0) -> 0
C88: Special Note: When the project element is not included in the analysis the results will all be zeros. In addition if only the analysis only includes determining the predicted average crash frequency (i.e. EB analysis is not carried out), the results will show zero values where EB results are usually displayed.
C89: 1 The values in this table are rounded values. For unrounded values, refer to Workdheet 1L.

Sheet Undivided Segment Template (hidden)
Q1: User Work Space
A2: Worksheet 1A (b) -- General Information and Input Data for Rural Multilane Roadway Segments | Y2: Calculations for the CMF for Shoulder Type and Widths
A3: General Information | H3: Location Information
A4: Analyst | C4: ='Project Information'!B6 -> John Smith | H4: Roadway | K4: =VLOOKUP($C$7,'Project Information'!$A$17:$I$99,2,FALSE) ->  | Y4: Calculated Shoulder Width (CMFwrc) : | AC4: =IF($H$11>2000,(VLOOKUP($H$13,$Y$39:$AC$47,5,FALSE)),IF($H$11<400,(VLOOKUP($H$13,$Y$39:$AC$47,3,FALSE)),(VLOOKUP($H$13,$Y$39:$AC$47,4)))) -> 1.1
A5: Agency or Company | C5: ='Project Information'!B7 -> ABC Company | H5: Roadway Section | K5: =VLOOKUP($C$7,'Project Information'!$A$17:$I$99,3,FALSE) -> 
A6: Date Performed | C6: ='Project Information'!F5 -> 2011-05-12 | H6: Jurisdiction | K6: =VLOOKUP($C$7,'Project Information'!$A$17:$I$99,4,FALSE) ->  | Y6: Calculated Shoulder Type (CMF trc) : | AC6: =IF($H$14="Paved",(HLOOKUP($H$13,'Segment Tables'!$P$9:$Z$13,2,FALSE)),(IF($H$14="Gravel",(HLOOKUP($H$13,'Segment Tables'!$P$9:$Z$13,3,FALSE)),(IF($H$14="Turf",(HLOOKUP($H$13,'Segment Tables'!$P$9:$Z$13,5,FALSE)),HLOOKUP($H$13,'Segment Tables'!$P$9:$Z$13,4,FALSE)))))) -> 1
A7: Segment for Analysis | H7: Analysis Year | K7: ='Project Information'!F6 -> 2011
A8: Input Data | H8: Site Conditions | L8: Base Conditions
A9: Roadway type (divided / undivided) | H9: Undivided | L9: Undivided
A10: Length of segment, L (mi) | L10: -- | Y10: Tables Affiliated with Crash Modification Factors for Specific Segment AADT values:
A11: AADT (veh/day) | E11: AADTMAX = | F11: 33200 | G11: (veh/day) | L11: -- | O11: =IF(H11>F11,"AADT out of range","AADT OK") -> AADT OK
A12: Lane width (ft) | L12: 12
A13: Shoulder width (ft) - right shoulder width for divided | L13: 6 | Y13: Table 11-11: CMF for Lane Width on Undivided Roadway Segments (CMFRA)
A14: Shoulder type - right shoulder type for divided | L14: Paved
A15: Median width (ft) - for divided only | H15: Not Applicable | L15: 30 | Y15: Lane Width (ft) | AA15: AADT (veh/day)
A16: Side Slopes - for undivided only | L16: 1:7 or flatter | AA16: < 400 | AB16: 400 to 2000 | AC16: > 2000
A17: Lighting (present/not present) | H17: Not Present | L17: Not Present | Y17: 9 | AA17: 1.04 | AB17: =1.04+0.000213*($H$11-400) -> 0.9548 | AC17: 1.38
A18: Auto speed enforcement (present/not present) | H18: Not Present | L18: Not Present | Y18: 9.5 | AA18: =+(AA17+AA19)/2 -> 1.03 | AB18: =+(AB17+AB19)/2 -> 0.9612 | AC18: =+(AC17+AC19)/2 -> 1.305
A19: Calibration Factor, Cr | H19: 1 | L19: 1 | Y19: 10 | AA19: 1.02 | AB19: =1.02+0.000131*($H$11-400) -> 0.9676 | AC19: 1.23
A20: Average Annual Crash History (3 or 5-yr average) | Y20: 10.5 | AA20: =+(AA19+AA26)/2 -> 1.015 | AB20: =+(AB19+AB26)/2 -> 0.98504 | AC20: =+(AC19+AC26)/2 -> 1.135
A21: Segment crashes | G21: KABC | H21: Fatal and Injury Only | J21: 0 | O21: If inputs are complete, click for next element
G22: PDO | H22: Property Damage Only | J22: 0
A23: NOTES: * AADT: It is important to remember that the AADT(major) = AADT(major approach1) + AADT(minor approach2) (refer to p.11-6 in Part C of the HSM)
Y26: 11 | AA26: 1.01 | AB26: =1.01+0.0000188*($H$11-400) -> 1.00248 | AC26: 1.04
A27: Worksheet 1B (b) -- Crash Modification Factors for Rural Multilane Undivided Roadway Segments | Y27: 11.5 | AA27: =+(AA26+AA28)/2 -> 1.005 | AB27: =+(AB26+AB28)/2 -> 1.00124 | AC27: =+(AC26+AC28)/2 -> 1.02
A28: (1) | C28: (2) | F28: (3) | H28: (4) | J28: (5) | M28: (6) | Y28: 12 | AA28: 1 | AB28: 1 | AC28: 1
A29: CMF for Lane Width | C29: CMF for Shoulder Width | F29: CMF for Side Slopes | H29: CMF for Lighting | J29: CMF for Automated Speed Enforcement | M29: Combined CMF | Y29: Note: The collision types related to lane width to which this CMF applies include run-off-the-road, head-on crashes, and sideswipes. | AL29: Base AADT
A31: CMF 1ru | C31: CMF 2ru | F31: CMF 3ru | H31: CMF 4ru | J31: CMF 5ru | M31: CMF comb
A32: from Equation 11-13 | C32: from Equation 11-14 | F32: from Table 11-14 | H32: from Equation 11-15 | J32: from Section 11.7.1 | M32: (1)*(2)*(3)*(4)*(5)
A33: =((IF($H$11>2000,(VLOOKUP($H$12,'Undivided Segment Template'!$Y$17:$AC$28,5,FALSE)),IF($H$11<400,(VLOOKUP($H$12,'Undivided Segment Template'!$Y$17:$AC$28,3,FALSE)),(VLOOKUP($H$12,'Undivided Segment Template'!$Y$17:$AC$28,4)))))-1)*(IF('Segment Tables'!D7="No",'Segment Tables'!E15,'Segment Tables'!I15))+1 ->  | C33: =(+$AC$4*$AC$6-1)*(IF('Segment Tables'!D7="NO",'Segment Tables'!E15,'Segment Tables'!I15))+1 -> 1.027 | F33: =HLOOKUP(H16,'Segment Tables'!O22:T23,2,FALSE) ->  | H33: =IF($H$17="Present",(1-(IF('Segment Tables'!$D$41="No",((1-(0.72*'Segment Tables'!$E$45)-(0.83*'Segment Tables'!$F$45))*'Segment Tables'!$G$45),((1-(0.72*'Segment Tables'!$I$45)-(0.83*'Segment Tables'!$J$45))*'Segment Tables'!$K$45)))),1) -> 1 | J33: =IF($H$18="Present",0.95,1) -> 1 | M33: =$A$33*$C$33*$F$33*$H$33*$J$33 -> 
Y35: Table 11-12: CMF for Collision Types Related to Shoulder Width (CMFWRA)
A37: Worksheet 1C (b) -- Roadway Segment Crashes for Rural Multilane Undivided Roadway Segments | Y37: Shoulder Width (ft) | AA37: AADT (veh/day)
A38: (1) | C38: (2) | F38: (3) | H38: (4) | J38: (5) | L38: (6) | M38: (7) | AA38: < 400 | AB38: 400 to 2000 | AC38: > 2000
A39: Crash Severity Level | C39: SPF Coefficients | F39: N spf rs(u) | H39: Overdispersion Parameter, k | J39: Combined CMFs | L39: Calibration Factor, Cr | M39: Predicted average crash frequency, N predicted rs(u) | Y39: 0 | AA39: 1.1 | AB39: =+($H$11-400)*0.00025+1.1 -> 1 | AC39: 1.5
C40: from Table 11-3 | J40: (6) from Worksheet 1B (b) | Y40: 1 | AA40: =+(AA39+AA41)/2 -> 1.085 | AB40: =+(AB39+AB41)/2 -> 1.0064 | AC40: =+(AC39+AC41)/2 -> 1.4
C41: a | D41: b | E41: c | F41: from Equation 11-7 | H41: from Equation 11-8 | M41: (3)*(5)*(6) | Y41: 2 | AA41: 1.07 | AB41: =+($H$11-400)*0.000143+1.07 -> 1.0128 | AC41: 1.3
A42: Total | C42: -9.653 | D42: 1.176 | E42: 1.675 | F42: =EXP($C$42+$D$42*LN($H$11)+LN($H$10)) ->  | H42: =1/(EXP($E$42+LN($H$10))) ->  | J42: =+$M$33 ->  | L42: =+$H$19 -> 1 | M42: =+F42*J42*L42 ->  | Y42: 3 | AA42: =+(AA41+AA43)/2 -> 1.045 | AB42: =+(AB41+AB43)/2 -> 1.00015 | AC42: =+(AC41+AC43)/2 -> 1.225
A43: Fatal and Injury (FI) | C43: -9.41 | D43: 1.094 | E43: 1.796 | F43: =EXP($C$43+$D$43*LN($H$11)+LN($H$10)) ->  | H43: =1/(EXP($E$43+LN($H$10))) ->  | J43: =+$M$33 ->  | L43: =+$H$19 -> 1 | M43: =+F43*J43*L43 ->  | Y43: 4 | AA43: 1.02 | AB43: =+($H$11-400)*0.00008125+1.02 -> 0.9875 | AC43: 1.15
A44: Fatal and Injurya (FIa) | C44: -8.577 | D44: 0.938 | E44: 2.003 | F44: =EXP($C$44+$D$44*LN($H$11)+LN($H$10)) ->  | H44: =1/(EXP($E$44+LN($H$10))) ->  | J44: =+$M$33 ->  | L44: =+$H$19 -> 1 | M44: =+F44*J44*L44 ->  | Y44: 5 | AA44: =+(AA43+AA45)/2 -> 1.01 | AB44: =+(AB43+AB45)/2 -> 0.99375 | AC44: =+(AC43+AC45)/2 -> 1.075
A45: Property Damage Only (PDO) | C45: -- | D45: -- | E45: -- | F45: -- | H45: -- | J45: -- | L45: -- | M45: (7)TOTAL - (7)FI | Y45: 6 | AA45: 1 | AB45: 1 | AC45: 1
M46: =+M42-M43 ->  | Y46: 7 | AA46: =+(AA45+AA47)/2 -> 0.99 | AB46: =+(AB45+AB47)/2 -> 1.00375 | AC46: =+(AC45+AC47)/2 -> 0.935
A47: NOTE: a Using the KABCO scale, these include only KAB crashes. Crashes with severity level C (possible injury) are not included. | Y47: 8 | AA47: 0.98 | AB47: =+(($H$11-400)*-0.00006875)+0.98 -> 1.0075 | AC47: 0.87
Y48: Note: The collision types related to shoulder width to which this CMF applies include single-vehicle run-off-the-road and multiple-vehicle head-on, opposite-direction sideswipe, and same-direction sideswipe crashes.
A51: Worksheet 1D (b) -- Crashes by Severity Level and Collision Type for Rural Multilane Undivided Roadway Segments
A52: (1) | C52: (2) | D52: (3) | F52: (4) | G52: (5) | I52: (6) | J52: (7) | L52: (8) | M52: (9)
A53: Collision Type | C53: Proportion of Collision Type(TOTAL) | D53: N predicted rs(u) (TOTAL) (crashes/year) | F53: Proportion of Collision Type(FI) | G53: N predicted rs(u) (FI) (crashes/year) | I53: Proportion of Collision Type (FIa) | J53: N predicted rs(u) (FIa) (crashes/year) | L53: Proportion of Collision Type (PDO) | M53: N predicted rs(u) (PDO) (crashes/year)
C56: from Table 11-4 | D56: (7)TOTAL from Worksheet 1C (b) | F56: from Table 11-4 | G56: (7)FI from Worksheet 1C (b) | I56: from Table 11-4 | J56: (7) FIa from Worksheet 1C (b) | L56: from Table 11-4 | M56: (7)PDO from Worksheet 1C (b)
A58: Total | C58: =IF('Segment Tables'!$D$7="No",SUM('Segment Tables'!$E$9:$E$14),SUM('Segment Tables'!$I$9:$I$14)) -> 1 | D58: =+M42 ->  | F58: =IF('Segment Tables'!$D$7="No",SUM('Segment Tables'!$F$9:$F$14),SUM('Segment Tables'!$J$9:$J$14)) -> 1 | G58: =+M43 ->  | I58: =IF('Segment Tables'!$D$7="No",SUM('Segment Tables'!$G$9:$G$14),SUM('Segment Tables'!$K$9:$K$14)) -> 1 | J58: =+M44 ->  | L58: =IF('Segment Tables'!D$7="No",SUM('Segment Tables'!$H$9:$H$14),SUM('Segment Tables'!$L$9:$L$14)) -> 1 | M58: =+M46 -> 
D59: (2)*(3)TOTAL | G59: (4)x(5)FI | J59: (6)*(7) FI a | M59: (8)*(9) PDO
A60: Head-on collision | C60: =IF('Segment Tables'!$D$7="No",'Segment Tables'!E9,'Segment Tables'!I9) -> 0.009 | D60: =+C60*$D$58 ->  | F60: =IF('Segment Tables'!$D$7="No",'Segment Tables'!F9,'Segment Tables'!J9) -> 0.029 | G60: =+F60*$G$58 ->  | I60: =IF('Segment Tables'!$D$7="No",'Segment Tables'!G9,'Segment Tables'!K9) -> 0.043 | J60: =+$J$58*I60 ->  | L60: =IF('Segment Tables'!$D$7="No",'Segment Tables'!H9,'Segment Tables'!L9) -> 0.001 | M60: =+$M$58*L60 -> 
A61: Sideswipe collision | C61: =IF('Segment Tables'!$D$7="No",'Segment Tables'!E10,'Segment Tables'!I10) -> 0.098 | F61: =IF('Segment Tables'!$D$7="No",'Segment Tables'!F10,'Segment Tables'!J10) -> 0.048 | I61: =IF('Segment Tables'!$D$7="No",'Segment Tables'!G10,'Segment Tables'!K10) -> 0.044 | L61: =IF('Segment Tables'!$D$7="No",'Segment Tables'!H10,'Segment Tables'!L10) -> 0.12
A62: Rear-end collision | C62: =IF('Segment Tables'!$D$7="No",'Segment Tables'!E11,'Segment Tables'!I11) -> 0.246 | F62: =IF('Segment Tables'!$D$7="No",'Segment Tables'!F11,'Segment Tables'!J11) -> 0.305 | I62: =IF('Segment Tables'!$D$7="No",'Segment Tables'!G11,'Segment Tables'!K11) -> 0.217 | L62: =IF('Segment Tables'!$D$7="No",'Segment Tables'!H11,'Segment Tables'!L11) -> 0.22
A63: Angle collision | C63: =IF('Segment Tables'!$D$7="No",'Segment Tables'!E12,'Segment Tables'!I12) -> 0.356 | F63: =IF('Segment Tables'!$D$7="No",'Segment Tables'!F12,'Segment Tables'!J12) -> 0.352 | I63: =IF('Segment Tables'!$D$7="No",'Segment Tables'!G12,'Segment Tables'!K12) -> 0.348 | L63: =IF('Segment Tables'!$D$7="No",'Segment Tables'!H12,'Segment Tables'!L12) -> 0.358
A64: Single-vehicle collision | C64: =IF('Segment Tables'!$D$7="No",'Segment Tables'!E13,'Segment Tables'!I13) -> 0.238 | F64: =IF('Segment Tables'!$D$7="No",'Segment Tables'!F13,'Segment Tables'!J13) -> 0.238 | I64: =IF('Segment Tables'!$D$7="No",'Segment Tables'!G13,'Segment Tables'!K13) -> 0.304 | L64: =IF('Segment Tables'!$D$7="No",'Segment Tables'!H13,'Segment Tables'!L13) -> 0.237
A65: Other collision | C65: =IF('Segment Tables'!$D$7="No",'Segment Tables'!E14,'Segment Tables'!I14) -> 0.053 | F65: =IF('Segment Tables'!$D$7="No",'Segment Tables'!F14,'Segment Tables'!J14) -> 0.028 | I65: =IF('Segment Tables'!$D$7="No",'Segment Tables'!G14,'Segment Tables'!K14) -> 0.044 | L65: =IF('Segment Tables'!$D$7="No",'Segment Tables'!H14,'Segment Tables'!L14) -> 0.064
A66: NOTE: a Using the KABCO scale, these include only KAB crashes. Crashes with severity level C (possible injury) are not included.
A69: Worksheet 1E (b) -- Summary Results for Rural Multilane Roadway Segments
A70: (1) | D70: (2) | I70: (3) | L70: (4)
A71: Crash severity level | D71: Predicted average crash frequency (crashes/year) | I71: Roadway segment length (mi) | L71: Crash rate (crashes/mi/year)
D72: (7) from Worksheet 1C (a) or (b) | L72: (2)/(3)
A73: Total | D73: =+M42 ->  | I73: =+$H$10 -> 0 | L73: =+D73/I73 -> 
A74: Fatal and Injury (FI) | D74: =+M43 ->  | I74: =+$H$10 -> 0 | L74: =+D74/I74 -> 
A75: Fatal and Injurya (FIa) | D75: =+M44 ->  | I75: =+$H$10 -> 0 | L75: =+D75/I75 -> 
A76: Property Damage Only (PDO) | D76: =+M46 ->  | I76: =+$H$10 -> 0 | L76: =+D76/I76 -> 
A77: NOTE: a Using the KABCO scale, these include only KAB crashes. Crashes with severity level C (possible injury) are not included.
C81: PROJECT ELEMENT RESULTS SUMMARY1
C83: Summary for the project element | D83: Total Crashes/yr | G83: Fatal and Injury Crashes/yr | J83: Property Damage Only Crashes/yr
D84: (KABCO) | G84: (KABC) | J84: (PDO)
D85: Predicted average crash frequency | E85: Expected average crash frequency | F85: Potential for Improvement | G85: Predicted average crash frequency | H85: Expected average crash frequency | I85: Potential for Improvement | J85: Predicted average crash frequency | K85: Expected average crash frequency | L85: Potential for Improvement
D86: Npredicted (KABCO) | E86: Nexpected (KABCO) | G86: Npredicted (KABC) | H86: Nexpected (KABC) | J86: Npredicted (O) | K86: Nexpected (O)
D87: =ROUND(D73,1) ->  | E87: =IF('Project Information'!$F$11="Predicted & Expected",ROUND(SUMIF('Rural Multilane Site Total'!$B$12:$C$37,$C$7,'Rural Multilane Site Total'!$L$12:$L$37),1),0) -> 0 | F87: =IF('Project Information'!$F$11="Predicted & Expected",IF(E87>D87,ROUND(E87-D87,1),0),0) -> 0 | G87: =ROUND(D74,1) ->  | H87: =IF('Project Information'!$F$11="Predicted & Expected",+ROUND((+E87*G87/D87),1),0) -> 0 | I87: =IF('Project Information'!$F$11="Predicted & Expected",IF(H87>G87,ROUND(H87-G87,1),0),0) -> 0 | J87: =ROUND(D76,1) ->  | K87: =IF('Project Information'!$F$11="Predicted & Expected",+ROUND((+E87*J87/D87),1),0) -> 0 | L87: =IF('Project Information'!$F$11="Predicted & Expected",IF(K87>J87,ROUND(K87-J87,1),0),0) -> 0
C88: Special Note: When the project element is not included in the analysis the results will all be zeros. In addition if only the analysis only includes determining the predicted average crash frequency (i.e. EB analysis is not carried out), the results will show zero values where EB results are usually displayed.
C89: 1 The values in this table are rounded values. For unrounded values, refer to Workdheet 1L.

Sheet Intersection Template (hidden)
P1: User Work Space
A2: Worksheet 2A -- General Information and Input Data for Rural Multilane Highway Intersections
A3: General Information | G3: Location Information | AB3: 0
A4: Analyst | C4: ='Project Information'!$B$6 -> John Smith | G4: Roadway | J4: =VLOOKUP($C$7,'Project Information'!$A$17:$H$95,2,FALSE) ->  | AB4: 1
A5: Agency or Company | C5: ='Project Information'!$B$7 -> ABC Company | G5: Intersection | J5: =VLOOKUP($C$7,'Project Information'!$A$17:$H$95,3,FALSE) ->  | AB5: 2
A6: Date Performed | C6: ='Project Information'!$F$5 -> 2011-05-12 | G6: Jurisdiction | J6: =VLOOKUP($C$7,'Project Information'!$A$17:$H$95,4,FALSE) ->  | AB6: 3
A7: Intersection | C7: Intersection 1 | G7: Analysis Year | J7: ='Project Information'!$F$6 -> 2011 | AB7: 4 | AD7: 3ST
A8: Signalized/Unsignalized | C8: =VLOOKUP($C$7,'Project Information'!$A$17:$H$95,6,FALSE) ->  | AD8: 4ST
A9: Input Data | G9: Site Conditions | K9: Base Conditions | AD9: 4SG
A10: Intersection type (3ST, 4ST, 4SG) | K10: -- | O10: =IF($G$10="3ST","Unsignalized three-leg (stop control on minor-road approaches)",IF($G$10="4ST","Unsignalized four-leg (stop control on minor-road approaches)","Signalized four-leg")) -> Signalized four-leg
A11: AADTmajor (veh/day) | D11: AADTMAX = | E11: =IF($G$10="3ST",78300,IF($G$10="4ST",78300,43500)) -> 43500 | F11: (veh/day) | K11: -- | N11: =IF(G11>E11,"AADT out of range","AADT OK") -> AADT OK
A12: AADTminor (veh/day) | D12: AADTMAX = | E12: =IF($G$10="3ST",23000,IF($G$10="4ST",7400,18500)) -> 18500 | F12: (veh/day) | K12: -- | N12: =IF(G12>E12,"AADT out of range","AADT OK") -> AADT OK
A13: Intersection skew angle (degrees) | K13: 0 | O13: Skew Intersection:
A14: Number of non-STOP-controlled approaches with left-turn lanes (0, 1, 2) | K14: 0
A15: Number of non-STOP-controlled approaches with right-turn lanes (0, 1, 2, 3, or 4) | K15: 0
A16: Intersection lighting (present/not present) | G16: Not Present | K16: Not Present
A17: Calibration Factor, Ci | G17: 1 | K17: 1
A18: Average Annual Crash History (3 or 5-yr average)
A19: Intersection crashes | F19: KABC | G19: Fatal and Injury Only | I19: 0 | N19: If inputs are complete, click for next element
F20: PDO | G20: Property Damage Only | I20: 0
A21: NOTES: * AADT: It is important to remember that the AADT(major) = AADT(major approach1) + AADT(minor approach2) (refer to p.11-6 in Part C of the HSM)
A26: Worksheet 2B -- Crash Modification Factors for Rural Multilane Highway Intersections
A27: (1) | C27: (2) | F27: (3) | H27: (4) | J27: (5) | L27: (6)
A28: Crash Severity Level | C28: CMF for Intersection Skew Angle (CMF 1i ) | F28: CMF for Left-Turn Lanes | H28: CMF for Right-Turn Lanes | J28: CMF for Lighting | L28: Combined CMF (CMF COMB )
C29: from Equations 11-18 or 11-20 and 11-19 or 11-21 | F29: (CMF 2i ) | H29: (CMF 3i ) | J29: (CMF 4i ) | AL29: Base Year
F30: from Table 11-22 | H30: from Table 11-23 | J30: from Equation 11-22 | L30: (2)*(3)*(4)*(5)
A31: Total | C31: =IF($G$10="4SG","--",IF($G$10="3ST",(((0.016*$G$13)/(0.98+0.16*$G$13))+1),(((0.053*$G$13)/(1.43+0.53*$G$13))+1))) -> 1 | F31: =IF($G$10="4SG","--",IF($G$14=0,1,IF($G$10="3ST",0.56,(IF($G$14=1,0.72,0.52))))) -> 1 | H31: =IF($G$10="4SG","--",IF($G$15=0,1,IF($G$10="3ST",0.86,(IF($G$15=1,0.86,0.74))))) -> 1 | J31: =IF($G$10="4SG","--",(IF(($G$16="Not Present"),1,(1-0.38*(IF($G$10="3ST",(IF('Intersection Tables'!D40="No",'Intersection Tables'!G44,'Intersection Tables'!K44)),(IF('Intersection Tables'!D40="No",'Intersection Tables'!G45,'Intersection Tables'!K45)))))))) -> 1 | L31: =IF($G$10="4SG",1,C31*F31*H31*J31) -> 1
A32: Fatal and Injury (FI) | C32: =IF($G$10="4SG","--",IF($G$10="3ST",(((0.017*$G$13)/(0.52+0.17*$G$13))+1),(((0.048*$G$13)/(0.72+0.48*$G$13))+1))) -> 1 | F32: =IF($G$10="4SG","--",IF($G$14=0,1,IF($G$10="3ST",0.45,(IF($G$14=1,0.65,0.42))))) -> 1 | H32: =IF($G$10="4SG","--",IF($G$15=0,1,IF($G$10="3ST",0.77,(IF($G$15=1,0.77,0.59))))) -> 1 | J32: =IF($G$10="4SG","--",(IF(($G$16="Not Present"),1,(1-0.38*(IF($G$10="3ST",(IF('Intersection Tables'!$D$40="No",'Intersection Tables'!$G$44,'Intersection Tables'!$K$44)),(IF('Intersection Tables'!$D$40="No",'Intersection Tables'!$G$45,'Intersection Tables'!$K$45)))))))) -> 1 | L32: =IF($G$10="4SG",1,C32*F32*H32*J32) -> 1
A33: Note: The 4-leg Signalized Intersection (4SG) models do not have base conditions and so can only be used for estimation purposes. As a result, there are not CMFs provided for the 4SG condition.
A36: Worksheet 2C -- Intersection Crashes for Rural Multilane Highway Intersections
A37: (1) | C37: (2) | F37: (3) | H37: (4) | J37: (5) | K37: (6) | L37: (7)
A38: Crash Severity Level | C38: SPF Coefficients | F38: N spf int | H38: Overdispersion Parameter, k | J38: Combined CMFs | K38: Calibration Factor, Ci | L38: Predicted average crash frequency, N predicted int
C39: from Table 11-7 or 11-8 | J39: from (6) of Worksheet 2B
C40: a | D40: b | E40: c or d (4SG) | F40: from Equation 11-11 or 11-12 | H40: from Table 11-7 or 11-8 | L40: (3)*(5)*(6)
A41: Total | C41: =IF($G$10="3ST",-12.526,(IF($G$10="4ST",-10.008,-7.182))) -> -7.182 | D41: =IF($G$10="3ST",1.204,(IF($G$10="4ST",0.848,0.722))) -> 0.722 | E41: =IF($G$10="3ST",0.236,(IF($G$10="4ST",0.448,0.337))) -> 0.337 | F41: =EXP($C$41+$D$41*LN($G$11)+$E$41*LN($G$12)) ->  | H41: =IF($G$10="3ST",0.46,(IF($G$10="4ST",0.494,0.277))) -> 0.277 | J41: =+$L$31 -> 1 | K41: =+$G$17 -> 1 | L41: =+$F$41*$J$41*$K$41 -> 
A42: Fatal and Injury (FI) | C42: =IF($G$10="3ST",-12.664,(IF($G$10="4ST",-11.554,-6.393))) -> -6.393 | D42: =IF($G$10="3ST",1.107,(IF($G$10="4ST",0.888,0.638))) -> 0.638 | E42: =IF($G$10="3ST",0.272,(IF($G$10="4ST",0.525,0.232))) -> 0.232 | F42: =EXP($C$42+$D$42*LN($G$11)+$E$42*LN($G$12)) ->  | H42: =IF($G$10="3ST",0.569,(IF($G$10="4ST",0.742,0.218))) -> 0.218 | J42: =+$L$32 -> 1 | K42: =+$G$17 -> 1 | L42: =+$F$42*$J$42*$K$42 -> 
A43: Fatal and Injurya (FIa) | C43: =IF($G$10="3ST",-11.989,(IF($G$10="4ST",-10.734,-12.011))) -> -12.011 | D43: =IF($G$10="3ST",1.013,(IF($G$10="4ST",0.828,"--"))) -> -- | E43: =IF($G$10="3ST",0.228,(IF($G$10="4ST",0.412,1.279))) -> 1.279 | F43: =IF(G10="4SG",(EXP(C43+E43*LN(G11+G12))),(EXP($C$43+$D$43*LN($G$11)+$E$43*LN($G$12)))) ->  | H43: =IF($G$10="3ST",0.566,(IF($G$10="4ST",0.655,0.566))) -> 0.566 | J43: =+$L$32 -> 1 | K43: =+$G$17 -> 1 | L43: =+$F$43*$J$43*$K$43 -> 
A44: Property Damage Only (PDO) | C44: -- | D44: -- | E44: -- | F44: -- | H44: -- | J44: -- | K44: -- | L44: (7)TOTAL - (7)FI
L45: =+$L$41-$L$42 -> 
A46: NOTE: a Using the KABCO scale, these include only KAB crashes. Crashes with severity level C (possible injury) are not included.
A49: Worksheet 2D -- Crashes by Severity Level and Collision Type for Rural Multilane Highway Intersections
A50: (1) | C50: (2) | D50: (3) | F50: (4) | G50: (5) | I50: (6) | J50: (7) | K50: (8) | L50: (9)
A51: Collision Type | C51: Proportion of Collision Type(TOTAL) | D51: N predicted int (TOTAL) (crashes/year) | F51: Proportion of Collision Type(FI) | G51: N predicted int (FI) (crashes/year) | I51: Proportion of Collision Type (FIa) | J51: N predicted int (FIa) (crashes/year) | K51: Proportion of Collision Type (PDO) | L51: N predicted int (PDO) (crashes/year)
C54: from Table 11-9 | D54: (7)TOTAL from Worksheet 2C | F54: from Table 11-9 | G54: (7)FI from Worksheet 2C | I54: from Table 11-9 | J54: (7) FIa from Worksheet 2C | K54: from Table 11-9 | L54: (7)PDO from Worksheet 2C
A56: Total | C56: =IF('Intersection Tables'!$D$7="No",IF($G$10="3ST",SUM('Intersection Tables'!$E$10:$E$15),IF($G$10="4ST",SUM('Intersection Tables'!$E$18:$E$23),SUM('Intersection Tables'!$E$26:$E$31))),IF($G$10="3ST",SUM('Intersection Tables'!$I$10:$I$15),IF($G$10="4ST",SUM('Intersection Tables'!$I$18:$I$23),SUM('Intersection Tables'!$I$26:$I$31)))) -> 1 | D56: =+L41 ->  | F56: =IF('Intersection Tables'!$D$7="No",IF($G$10="3ST",SUM('Intersection Tables'!$F$10:$F$15),IF($G$10="4ST",SUM('Intersection Tables'!$F$18:$F$23),SUM('Intersection Tables'!$F$26:$F$31))),IF($G$10="3ST",SUM('Intersection Tables'!$J$10:$J$15),IF($G$10="4ST",SUM('Intersection Tables'!$J$18:$J$23),SUM('Intersection Tables'!$J$26:$J$31)))) -> 1 | G56: =+L42 ->  | I56: =IF('Intersection Tables'!$D$7="No",IF($G$10="3ST",SUM('Intersection Tables'!$G$10:$G$15),IF($G$10="4ST",SUM('Intersection Tables'!$G$18:$G$23),SUM('Intersection Tables'!$G$26:$G$31))),IF($G$10="3ST",SUM('Intersection Tables'!$K$10:$K$15),IF($G$10="4ST",SUM('Intersection Tables'!$K$18:$K$23),SUM('Intersection Tables'!$K$26:$K$31)))) -> 1 | J56: =+L43 ->  | K56: =IF('Intersection Tables'!$D$7="No",IF($G$10="3ST",SUM('Intersection Tables'!$H$10:$H$15),IF($G$10="4ST",SUM('Intersection Tables'!$H$18:$H$23),SUM('Intersection Tables'!$H$26:$H$31))),IF($G$10="3ST",SUM('Intersection Tables'!$L$10:$L$15),IF($G$10="4ST",SUM('Intersection Tables'!$L$18:$L$23),SUM('Intersection Tables'!$L$26:$L$31)))) -> 1 | L56: =+L45 -> 
D57: (2)*(3)TOTAL | G57: (4)x(5)FI | J57: (6)*(7) FI a | L57: (8)*(9) PDO
A58: Head-on collision | C58: =IF('Intersection Tables'!$D$7="No",(IF($G$10="3ST",'Intersection Tables'!E10,(IF($G$10="4ST",'Intersection Tables'!E18,'Intersection Tables'!E26)))),(IF($G$10="3ST",'Intersection Tables'!I10,(IF($G$10="4ST",'Intersection Tables'!I18,'Intersection Tables'!I26))))) -> 0.054 | D58: =+C58*$D$56 ->  | F58: =IF('Intersection Tables'!$D$7="No",(IF($G$10="3ST",'Intersection Tables'!F10,(IF($G$10="4ST",'Intersection Tables'!F18,'Intersection Tables'!F26)))),(IF($G$10="3ST",'Intersection Tables'!J10,(IF($G$10="4ST",'Intersection Tables'!J18,'Intersection Tables'!J26))))) -> 0.083 | G58: =+F58*$G$56 ->  | I58: =IF('Intersection Tables'!$D$7="No",(IF($G$10="3ST",'Intersection Tables'!G10,(IF($G$10="4ST",'Intersection Tables'!G18,'Intersection Tables'!G26)))),(IF($G$10="3ST",'Intersection Tables'!K10,(IF($G$10="4ST",'Intersection Tables'!K18,'Intersection Tables'!K26))))) -> 0.093 | J58: =+I58*$J$56 ->  | K58: =IF('Intersection Tables'!$D$7="No",(IF($G$10="3ST",'Intersection Tables'!H10,(IF($G$10="4ST",'Intersection Tables'!H18,'Intersection Tables'!H26)))),(IF($G$10="3ST",'Intersection Tables'!L10,(IF($G$10="4ST",'Intersection Tables'!L18,'Intersection Tables'!L26))))) -> 0.034 | L58: =+K58*$L$56 -> 
A59: Sideswipe collision | C59: =IF('Intersection Tables'!$D$7="No",(IF($G$10="3ST",'Intersection Tables'!E11,(IF($G$10="4ST",'Intersection Tables'!E19,'Intersection Tables'!E27)))),(IF($G$10="3ST",'Intersection Tables'!I11,(IF($G$10="4ST",'Intersection Tables'!I19,'Intersection Tables'!I27))))) -> 0.106 | F59: =IF('Intersection Tables'!$D$7="No",(IF($G$10="3ST",'Intersection Tables'!F11,(IF($G$10="4ST",'Intersection Tables'!F19,'Intersection Tables'!F27)))),(IF($G$10="3ST",'Intersection Tables'!J11,(IF($G$10="4ST",'Intersection Tables'!J19,'Intersection Tables'!J27))))) -> 0.047 | I59: =IF('Intersection Tables'!$D$7="No",(IF($G$10="3ST",'Intersection Tables'!G11,(IF($G$10="4ST",'Intersection Tables'!G19,'Intersection Tables'!G27)))),(IF($G$10="3ST",'Intersection Tables'!K11,(IF($G$10="4ST",'Intersection Tables'!K19,'Intersection Tables'!K27))))) -> 0.039 | K59: =IF('Intersection Tables'!$D$7="No",(IF($G$10="3ST",'Intersection Tables'!H11,(IF($G$10="4ST",'Intersection Tables'!H19,'Intersection Tables'!H27)))),(IF($G$10="3ST",'Intersection Tables'!L11,(IF($G$10="4ST",'Intersection Tables'!L19,'Intersection Tables'!L27))))) -> 0.147
A60: Rear-end collision | C60: =IF('Intersection Tables'!$D$7="No",(IF($G$10="3ST",'Intersection Tables'!E12,(IF($G$10="4ST",'Intersection Tables'!E20,'Intersection Tables'!E28)))),(IF($G$10="3ST",'Intersection Tables'!I12,(IF($G$10="4ST",'Intersection Tables'!I20,'Intersection Tables'!I28))))) -> 0.492 | F60: =IF('Intersection Tables'!$D$7="No",(IF($G$10="3ST",'Intersection Tables'!F12,(IF($G$10="4ST",'Intersection Tables'!F20,'Intersection Tables'!F28)))),(IF($G$10="3ST",'Intersection Tables'!J12,(IF($G$10="4ST",'Intersection Tables'!J20,'Intersection Tables'!J28))))) -> 0.472 | I60: =IF('Intersection Tables'!$D$7="No",(IF($G$10="3ST",'Intersection Tables'!G12,(IF($G$10="4ST",'Intersection Tables'!G20,'Intersection Tables'!G28)))),(IF($G$10="3ST",'Intersection Tables'!K12,(IF($G$10="4ST",'Intersection Tables'!K20,'Intersection Tables'!K28))))) -> 0.314 | K60: =IF('Intersection Tables'!$D$7="No",(IF($G$10="3ST",'Intersection Tables'!H12,(IF($G$10="4ST",'Intersection Tables'!H20,'Intersection Tables'!H28)))),(IF($G$10="3ST",'Intersection Tables'!L12,(IF($G$10="4ST",'Intersection Tables'!L20,'Intersection Tables'!L28))))) -> 0.505
A61: Angle collision | C61: =IF('Intersection Tables'!$D$7="No",(IF($G$10="3ST",'Intersection Tables'!E13,(IF($G$10="4ST",'Intersection Tables'!E21,'Intersection Tables'!E29)))),(IF($G$10="3ST",'Intersection Tables'!I13,(IF($G$10="4ST",'Intersection Tables'!I21,'Intersection Tables'!I29))))) -> 0.256 | F61: =IF('Intersection Tables'!$D$7="No",(IF($G$10="3ST",'Intersection Tables'!F13,(IF($G$10="4ST",'Intersection Tables'!F21,'Intersection Tables'!F29)))),(IF($G$10="3ST",'Intersection Tables'!J13,(IF($G$10="4ST",'Intersection Tables'!J21,'Intersection Tables'!J29))))) -> 0.315 | I61: =IF('Intersection Tables'!$D$7="No",(IF($G$10="3ST",'Intersection Tables'!G13,(IF($G$10="4ST",'Intersection Tables'!G21,'Intersection Tables'!G29)))),(IF($G$10="3ST",'Intersection Tables'!K13,(IF($G$10="4ST",'Intersection Tables'!K21,'Intersection Tables'!K29))))) -> 0.407 | K61: =IF('Intersection Tables'!$D$7="No",(IF($G$10="3ST",'Intersection Tables'!H13,(IF($G$10="4ST",'Intersection Tables'!H21,'Intersection Tables'!H29)))),(IF($G$10="3ST",'Intersection Tables'!L13,(IF($G$10="4ST",'Intersection Tables'!L21,'Intersection Tables'!L29))))) -> 0.215
A62: Single-vehicle collision | C62: =IF('Intersection Tables'!$D$7="No",(IF($G$10="3ST",'Intersection Tables'!E14,(IF($G$10="4ST",'Intersection Tables'!E22,'Intersection Tables'!E30)))),(IF($G$10="3ST",'Intersection Tables'!I14,(IF($G$10="4ST",'Intersection Tables'!I22,'Intersection Tables'!I30))))) -> 0.062 | F62: =IF('Intersection Tables'!$D$7="No",(IF($G$10="3ST",'Intersection Tables'!F14,(IF($G$10="4ST",'Intersection Tables'!F22,'Intersection Tables'!F30)))),(IF($G$10="3ST",'Intersection Tables'!J14,(IF($G$10="4ST",'Intersection Tables'!J22,'Intersection Tables'!J30))))) -> 0.041 | I62: =IF('Intersection Tables'!$D$7="No",(IF($G$10="3ST",'Intersection Tables'!G14,(IF($G$10="4ST",'Intersection Tables'!G22,'Intersection Tables'!G30)))),(IF($G$10="3ST",'Intersection Tables'!K14,(IF($G$10="4ST",'Intersection Tables'!K22,'Intersection Tables'!K30))))) -> 0.078 | K62: =IF('Intersection Tables'!$D$7="No",(IF($G$10="3ST",'Intersection Tables'!H14,(IF($G$10="4ST",'Intersection Tables'!H22,'Intersection Tables'!H30)))),(IF($G$10="3ST",'Intersection Tables'!L14,(IF($G$10="4ST",'Intersection Tables'!L22,'Intersection Tables'!L30))))) -> 0.077
A63: Other collision | C63: =IF('Intersection Tables'!$D$7="No",(IF($G$10="3ST",'Intersection Tables'!E15,(IF($G$10="4ST",'Intersection Tables'!E23,'Intersection Tables'!E31)))),(IF($G$10="3ST",'Intersection Tables'!I15,(IF($G$10="4ST",'Intersection Tables'!I23,'Intersection Tables'!I31))))) -> 0.03 | F63: =IF('Intersection Tables'!$D$7="No",(IF($G$10="3ST",'Intersection Tables'!F15,(IF($G$10="4ST",'Intersection Tables'!F23,'Intersection Tables'!F31)))),(IF($G$10="3ST",'Intersection Tables'!J15,(IF($G$10="4ST",'Intersection Tables'!J23,'Intersection Tables'!J31))))) -> 0.042 | I63: =IF('Intersection Tables'!$D$7="No",(IF($G$10="3ST",'Intersection Tables'!G15,(IF($G$10="4ST",'Intersection Tables'!G23,'Intersection Tables'!G31)))),(IF($G$10="3ST",'Intersection Tables'!K15,(IF($G$10="4ST",'Intersection Tables'!K23,'Intersection Tables'!K31))))) -> 0.069 | K63: =IF('Intersection Tables'!$D$7="No",(IF($G$10="3ST",'Intersection Tables'!H15,(IF($G$10="4ST",'Intersection Tables'!H23,'Intersection Tables'!H31)))),(IF($G$10="3ST",'Intersection Tables'!L15,(IF($G$10="4ST",'Intersection Tables'!L23,'Intersection Tables'!L31))))) -> 0.022
A64: NOTE: a Using the KABCO scale, these include only KAB crashes. Crashes with severity level C (possible injury) are not included.
C68: Worksheet 2E -- Summary Results for Rural Multilane Highway Intersections
C69: (1) | G69: (2)
C70: Crash severity level | G70: Predicted average crash frequency (crashes / year)
G71: (7) from Worksheet 2C
C72: Total | G72: =+L41 -> 
C73: Fatal and Injury (FI) | G73: =+L42 -> 
C74: Fatal and Injurya (FIa) | G74: =+L43 -> 
C75: Property Damage Only (PDO) | G75: =+L45 -> 
C76: NOTE: a Using the KABCO scale, these include only KAB crashes. Crashes with severity level C (possible injury) are not included.
B81: PROJECT ELEMENT RESULTS SUMMARY1
B83: Summary for the project element | C83: Total Crashes/yr | F83: Fatal and Injury Crashes/yr | I83: Property Damage Only Crashes/yr
C84: (KABCO) | F84: (KABC) | I84: (PDO)
C85: Predicted average crash frequency | D85: Expected average crash frequency | E85: Potential for Improvement | F85: Predicted average crash frequency | G85: Expected average crash frequency | H85: Potential for Improvement | I85: Predicted average crash frequency | J85: Expected average crash frequency | K85: Potential for Improvement
C86: Npredicted (KABCO) | D86: Nexpected (KABCO) | F86: Npredicted (KABC) | G86: Nexpected (KABC) | I86: Npredicted (O) | J86: Nexpected (O)
C87: =ROUND(G72,1) ->  | D87: =IF('Project Information'!$F$11="Predicted & Expected",ROUND(SUMIF('Rural Multilane Site Total'!$B$12:$C$37,$C$7,'Rural Multilane Site Total'!$L$12:$L$37),1),0) -> 0 | E87: =IF('Project Information'!$F$11="Predicted & Expected",IF(D87>C87,ROUND(D87-C87,1),0),0) -> 0 | F87: =ROUND(G73,1) ->  | G87: =IF('Project Information'!$F$11="Predicted & Expected",+ROUND((+D87*F87/C87),1),0) -> 0 | H87: =IF('Project Information'!$F$11="Predicted & Expected",IF(G87>F87,ROUND(G87-F87,1),0),0) -> 0 | I87: =ROUND(G75,1) ->  | J87: =IF('Project Information'!$F$11="Predicted & Expected",+ROUND((+D87*I87/C87),1),0) -> 0 | K87: =IF('Project Information'!$F$11="Predicted & Expected",IF(J87>I87,ROUND(J87-I87,1),0),0) -> 0
B88: Special Note: When the project element is not included in the analysis the results will all be zeros. In addition if only the analysis only includes determining the predicted average crash frequency (i.e. EB analysis is not carried out), the results will show zero values where EB results are usually displayed.
B89: 1 The values in this table are rounded values. For unrounded values, refer to Workdheet 1L.

Sheet Multi-Year Template (hidden)
A1: MULTIPLE-YEAR ANALYSIS FOR RURAL MULTILANE ROADS - INPUTS | M1: User Work Space
A3: General Information
A4: Project Name | C4: ='Project Information'!B3 -> Practical Case Study | F4: Analyst | H4: ='Project Information'!B6 -> John Smith
A5: Project Description | C5: ='Project Information'!B4 -> Three Signalized Intersections | F5: Contact Email | H5: ='Project Information'!F3 -> email
A6: Reference Number | C6: ='Project Information'!B5 -> STARS Report A-1 | F6: Contact Phone | H6: ='Project Information'!F4 -> 1234567891
A7: Agency/Company | C7: ='Project Information'!B7 -> ABC Company | F7: Date Performed | H7: ='Project Information'!F5 -> 2011-05-12
A10: Input Data
A11: Base Year | C11: 2011
A12: Analysis Period (Years) | C12: 1
A13: Linear Traffic Growth (annual %) | C13: 0.01

Sheet Segment Tables (hidden)
B1: Tables Affiliated with Crash Statistics: | O1: Tables Affiliated with Crash Modification Factors:
B3: Table 11-4: Distribution of Crashes by Collision Type and Crash Severity Level for Undivided Roadway Segments
B5: Collision type | E5: Proportion of crashes by collision type and crash severity level
E6: HSM-Provided Values | I6: Locally-Derived Values | O6: Table 11-13: CMF for Collision Types Related to Shoulder Types and Shoulder Widths (CMFTRA) | AC6: Table 11-17: CMF for Right Shoulder Width on Divided Roadway Segments (CMF2rd)
B7: Locally-Derived Values? | D7: No | E7: Total | F7: Fatal and injury | G7: Fatal and injury a | H7: PDO | I7: Total | J7: Fatal and injury | K7: Fatal and injury a | L7: PDO
O8: Shoulder Type | P8: Shoulder width (ft) | AC8: Average Shoulder Width (ft) | AE8: CMF
B9: Head-on | E9: 0.009 | F9: 0.029 | G9: 0.043 | H9: 0.001 | I9: 0.009 | J9: 0.029 | K9: 0.043 | L9: 0.001 | P9: 0 | Q9: 1 | R9: 2 | S9: 3 | T9: 4 | U9: 5 | V9: 6 | W9: 7 | X9: 8 | Y9: 9 | Z9: 10
B10: Sideswipe | E10: 0.098 | F10: 0.048 | G10: 0.044 | H10: 0.12 | I10: 0.098 | J10: 0.048 | K10: 0.044 | L10: 0.12 | O10: Paved | P10: 1 | Q10: 1 | R10: 1 | S10: 1 | T10: 1 | U10: =+(T10+V10)/2 -> 1 | V10: 1 | W10: =+(V10+X10)/2 -> 1 | X10: 1 | Y10: =+(X10+Z10)/2 -> 1 | Z10: 1 | AC10: 0 | AE10: 1.18
B11: Rear-end | E11: 0.246 | F11: 0.305 | G11: 0.217 | H11: 0.22 | I11: 0.246 | J11: 0.305 | K11: 0.217 | L11: 0.22 | O11: Gravel | P11: 1 | Q11: 1 | R11: 1.01 | S11: 1.01 | T11: 1.01 | U11: =+(T11+V11)/2 -> 1.015 | V11: 1.02 | W11: =+(V11+X11)/2 -> 1.02 | X11: 1.02 | Y11: =+(X11+Z11)/2 -> 1.025 | Z11: 1.03 | AC11: 1 | AE11: =+(AE10+AE12)/2 -> 1.155
B12: Angle | E12: 0.356 | F12: 0.352 | G12: 0.348 | H12: 0.358 | I12: 0.356 | J12: 0.352 | K12: 0.348 | L12: 0.358 | O12: Composite | P12: 1 | Q12: 1.01 | R12: 1.02 | S12: 1.02 | T12: 1.03 | U12: =+(T12+V12)/2 -> 1.035 | V12: 1.04 | W12: =+(V12+X12)/2 -> 1.05 | X12: 1.06 | Y12: =+(X12+Z12)/2 -> 1.065 | Z12: 1.07 | AC12: 2 | AE12: 1.13
B13: Single | E13: 0.238 | F13: 0.238 | G13: 0.304 | H13: 0.237 | I13: 0.238 | J13: 0.238 | K13: 0.304 | L13: 0.237 | O13: Turf | P13: 1 | Q13: 1.01 | R13: 1.03 | S13: 1.04 | T13: 1.05 | U13: =+(T13+V13)/2 -> 1.065 | V13: 1.08 | W13: =+(V13+X13)/2 -> 1.095 | X13: 1.11 | Y13: =+(X13+Z13)/2 -> 1.125 | Z13: 1.14 | AC13: 3 | AE13: =+(AE12+AE14)/2 -> 1.11
B14: Other | E14: 0.053 | F14: 0.028 | G14: 0.044 | H14: 0.064 | I14: 0.053 | J14: 0.028 | K14: 0.044 | L14: 0.064 | O14: Note: The values for composite shoulders in this exhibit represent a shoulder for which 50 percent of the shoulder width is paved and 50 percent of the shoulder width is turf. | AC14: 4 | AE14: 1.09
B15: SV run-off-rd, Head-on, Sideswipe | E15: 0.27 | I15: 0.33 | AC15: 5 | AE15: =+(AE14+AE16)/2 -> 1.065
B16: NOTE: a Using the KABCO scale, these include only KAB crashes. Crashes with severity level C (possible injury) are not included. | AC16: 6 | AE16: 1.04
AC17: 7 | AE17: =+(AE16+AE18)/2 -> 1.02
AC18: 8 | AE18: 1
AC19: 9 | AE19: 1
B20: Table 11-6: Distribution of Crashes by Collision Type and Crash Severity Level for Divided Roadway Segments | O20: Table 11-14: CMF for Side Slope on Undivided Roadway Segments (CMF3ru) | AC20: 10 | AE20: 1
B22: Collision type | E22: Proportion of crashes by collision type and crash severity level | O22: 1:2 or Steeper | P22: 1:3 | Q22: 1:4 | R22: 1:5 | S22: 1:6 | T22: 1:7 or Flatter
E23: HSM-Provided Values | I23: Locally-Derived Values | O23: 1.18 | P23: 1.15 | Q23: 1.12 | R23: 1.09 | S23: 1.05 | T23: 1
B24: Locally-Derived Values? | D24: No | E24: Total | F24: Fatal and injury | G24: Fatal and injury a | H24: PDO | I24: Total | J24: Fatal and injury | K24: Fatal and injury a | L24: PDO
AC25: Table 11-18: CMF for Median Width on Divided Roadway Segments without a Median Barrier(CMF3rd)
B26: Head-on | E26: 0.006 | F26: 0.013 | G26: 0.018 | H26: 0.002
B27: Sideswipe | E27: 0.043 | F27: 0.027 | G27: 0.022 | H27: 0.053
B28: Rear-end | E28: 0.116 | F28: 0.163 | G28: 0.114 | H28: 0.088 | AC28: Median Width (ft) | AE28: CMF
B29: Angle | E29: 0.043 | F29: 0.048 | G29: 0.045 | H29: 0.041 | AC29: 10 | AE29: 1.04
B30: Single | E30: 0.768 | F30: 0.727 | G30: 0.778 | H30: 0.792 | AC30: 20 | AE30: 1.02
B31: Other | E31: 0.024 | F31: 0.022 | G31: 0.023 | H31: 0.024 | AC31: 30 | AE31: 1
B32: SV run-off-rd, Head-on, Sideswipe | E32: 0.5 | I32: 0.33 | AC32: 40 | AE32: 0.99
B33: NOTE: a Using the KABCO scale, these include only KAB crashes. Crashes with severity level C (possible injury) are not included. | AC33: 50 | AE33: 0.97
AC34: 60 | AE34: 0.96
AC35: 70 | AE35: 0.96
AC36: 80 | AE36: 0.95
B37: Table 11-15: Night-time Crash Proportions for Unlighted Roadway Segments | AC37: 90 | AE37: 0.94
AC38: 100 | AE38: 0.94
B39: Roadway Type | E39: HSM-Provided Values | I39: Locally-Derived Values
E40: Proportion of total night-time crashes by severity level | G40: Proportion of crashes that occur at night | I40: Proportion of total night-time crashes by severity level | K40: Proportion of crashes that occur at night
B41: Locally-Derived Values? | D41: No
E43: Fatal and injury, pinr | F43: PDO, ppnr | G43: pnr | I43: Fatal and injury, pinr | J43: PDO, ppnr | K43: pnr
B45: 4U | E45: 0.361 | F45: 0.639 | G45: 0.255
B49: Table 11-19: Night-time Crash Proportions for Unlighted Roadway Segments
B51: Roadway Type | E51: HSM-Provided Values | I51: Locally-Derived Values
E52: Proportion of total night-time crashes by severity level | G52: Proportion of crashes that occur at night | I52: Proportion of total night-time crashes by severity level | K52: Proportion of crashes that occur at night
B53: Locally-Derived Values? | D53: No
E55: Fatal and injury, pinr | F55: PDO, ppnr | G55: pnr | I55: Fatal and injury, pinr | J55: PDO, ppnr | K55: pnr
B57: 4D | E57: 0.323 | F57: 0.677 | G57: 0.426

Sheet Intersection Tables (hidden)
B1: Tables Affiliated with Crash Statistics:
B3: Table 11-9: Distribution of Intersection Crashes by Collision Type and Crash Severity
B5: Collision type | E5: Proportion of crashes by collision type and crash severity level
E6: HSM-Provided Values | I6: Locally-Derived Values
B7: Locally-Derived Values? | D7: No | E7: Total | F7: Fatal and injury | G7: Fatal and injury a | H7: PDO | I7: Total | J7: Fatal and injury | K7: Fatal and injury a | L7: PDO
B9: Three-leg intersections with minor road stop control
B10: Head-on | E10: 0.029 | F10: 0.043 | G10: 0.052 | H10: 0.02 | J10: 0.1 | K10: 0.2 | L10: 0.3
B11: Sideswipe | E11: 0.133 | F11: 0.058 | G11: 0.057 | H11: 0.179
B12: Rear-end | E12: 0.289 | F12: 0.247 | G12: 0.142 | H12: 0.315
B13: Angle | E13: 0.263 | F13: 0.369 | G13: 0.381 | H13: 0.198
B14: Single | E14: 0.234 | F14: 0.219 | G14: 0.284 | H14: 0.244
B15: Other | E15: 0.052 | F15: 0.064 | G15: 0.084 | H15: 0.044
B16: SV run-off-rd, Head-on, Sideswipe | E16: 0.5 | I16: 0.33
B17: Four-leg intersections with minor road stop control
B18: Head-on | E18: 0.016 | F18: 0.018 | G18: 0.023 | H18: 0.015 | J18: 0.4 | K18: 0.5 | L18: 0.6
B19: Sideswipe | E19: 0.107 | F19: 0.042 | G19: 0.04 | H19: 0.156
B20: Rear-end | E20: 0.228 | F20: 0.213 | G20: 0.108 | H20: 0.24
B21: Angle | E21: 0.395 | F21: 0.534 | G21: 0.571 | H21: 0.292
B22: Single | E22: 0.202 | F22: 0.148 | G22: 0.199 | H22: 0.243
B23: Other | E23: 0.052 | F23: 0.045 | G23: 0.059 | H23: 0.054
B24: SV run-off-rd, Head-on, Sideswipe | E24: 0.5 | I24: 0.33
B25: Four-leg signalized intersections
B26: Head-on | E26: 0.054 | F26: 0.083 | G26: 0.093 | H26: 0.034 | J26: 0.7 | K26: 0.8 | L26: 0.9
B27: Sideswipe | E27: 0.106 | F27: 0.047 | G27: 0.039 | H27: 0.147
B28: Rear-end | E28: 0.492 | F28: 0.472 | G28: 0.314 | H28: 0.505
B29: Angle | E29: 0.256 | F29: 0.315 | G29: 0.407 | H29: 0.215
B30: Single | E30: 0.062 | F30: 0.041 | G30: 0.078 | H30: 0.077
B31: Other | E31: 0.03 | F31: 0.042 | G31: 0.069 | H31: 0.022
B32: SV run-off-rd, Head-on, Sideswipe | E32: 0.5 | I32: 0.33
B33: NOTE: a Using the KABCO scale, these include only KAB crashes. Crashes with severity level C (possible injury) are not included.
B36: Table 11-24: Night-time Crash Proportions for Unlighted Intersections
B38: Roadway Type | E38: HSM-Provided Values | I38: Locally-Derived Values
E39: Proportion of total night-time crashes by severity level | G39: Proportion of crashes that occur at night | I39: Proportion of total night-time crashes by severity level | K39: Proportion of crashes that occur at night
B40: Locally-Derived Values? | D40: No
E42: Fatal and injury, pini | F42: PDO, ppnr | G42: pni | I42: Fatal and injury, pinr | J42: PDO, ppnr | K42: pnr
B44: 3ST | G44: 0.276
B45: 4ST | G45: 0.273

Sheet Construction (hidden)
B3: Lane Width | D3: Shoulder Width | F3: RHR
B4: 9 | D4: 0 | F4: 1
B5: 9.5 | D5: 1 | F5: 2
B6: 10 | D6: 2 | F6: 3
B7: 10.5 | D7: 3 | F7: 4
B8: 11 | D8: 4 | F8: 5
B9: 11.5 | D9: 5 | F9: 6
B10: 12 | D10: 6 | F10: 7
D11: 7
D12: 8
H15: Centerline | J15: Passing | L15: Local
D16: Shoulder Type | F16: Spiral | H16: Rumble Strips | J16: Lane | L16: Yes
D17: Paved | F17: Not Present | H17: Not Present | J17: Not Present | L17: No
D18: Gravel | F18: Present | H18: Present | J18: Present (1 lane)
D19: Composite | J19: Present (2 lanes)
D20: Turf
F22: TWLTL | H22: Lighting | J22: SpEnforce
F23: Not Present | H23: Not Present | J23: Not Present
F24: Present | H24: Present | J24: Present
D28: Itype | F28: Lapproach | H28: Rapproach | J28: Ilight | L28: Differ
D29: 3ST | F29: 0 | H29: 0 | J29: Not Present | L29: Yes
D30: 4ST | F30: 1 | H30: 1 | J30: Present | L30: No
D31: 4SG | F31: 2 | H31: 2
F32: 3 | H32: 3
F33: 4 | H33: 4
D36: Mwidth | F36: Division | H36: Sslope2 | J36: Shld2 | L36: Iapproach | N36: RtApproach | P36: Shld3
D37: 10 | F37: Divided | H37: 1:2 or Steeper | J37: 0 | L37: 0 | N37: 0 | P37: 0
D38: 20 | F38: Undivided | H38: 1:3 | J38: 1 | L38: 1 | N38: 1 | P38: 1
D39: 30 | H39: 1:4 | J39: 2 | L39: 2 | N39: 2 | P39: 2
D40: 40 | H40: 1:5 | J40: 3 | N40: 3 | P40: 3
D41: 50 | H41: 1:6 | J41: 4 | N41: 4 | P41: 4
D42: 60 | H42: 1:7 or Flatter | J42: 5 | P42: 5
D43: 70 | J43: 6 | P43: 6
D44: 80 | J44: 7 | P44: 7
D45: 90 | J45: 8 | P45: 8
D46: 100 | J46: 9
J47: 10
